bitfinex-derivatives/quotes_SOLF0:USTF0_20260220
["timestamp","ask_amount","ask_price","bid_price","bid_amount"]
[1771565370529,3.15134171,82.84,82.811,7.49598469]
[1771565371832,10.8694,82.838,82.811,7.49598469]
[1771565376236,3.15134171,82.84,82.811,7.49598469]
[1771565376738,10.8694,82.839,82.811,7.49598469]
[1771565378238,9.1769939,82.838,82.811,7.49598469]
[1771565378538,12.19543333,82.837,82.811,7.49598469]
[1771565378841,9.1769939,82.836,82.811,7.49598469]
[1771565379037,10.8694,82.839,82.811,7.49598469]
[1771565379336,12.19815136,82.838,82.811,7.49598469]
[1771565379535,12.19815136,82.837,82.811,7.49598469]
[1771565379839,12.19815136,82.836,82.811,7.49598469]
[1771565380032,10.8694,82.839,82.811,7.49598469]
[1771565380231,12.19906567,82.838,82.811,7.49598469]
[1771565380431,12.19906567,82.837,82.811,7.49598469]
[1771565380634,12.19906567,82.836,82.811,7.49598469]
[1771565380836,10.8694,82.839,82.811,7.49598469]
[1771565381038,12.19912326,82.838,82.811,7.49598469]
[1771565381238,12.19912326,82.837,82.811,7.49598469]
[1771565381434,12.19912326,82.836,82.811,7.49598469]
[1771565381738,9.18071278,82.835,82.811,7.49598469]
[1771565381940,10.8694,82.839,82.811,7.49598469]
[1771565382239,10.8697,82.836,82.811,7.49598469]
[1771565382440,12.20015816,82.835,82.811,7.49598469]
[1771565382636,12.20018855,82.834,82.791,7.62825259]
[1771565382836,10.8697,82.836,82.791,7.62825259]
[1771565383036,12.2012747,82.835,82.791,7.62825259]
[1771565383238,9.18280418,82.834,82.791,7.62825259]
[1771565383544,10.8687,82.844,82.801,7.62828418]
[1771565383842,12.202592,82.843,82.801,7.62828418]
[1771565384136,10.8693,82.84,82.801,7.62828418]
[1771565384342,12.202592,82.839,82.801,7.62828418]
[1771565384543,12.202592,82.838,82.801,7.62828418]
[1771565384739,12.202592,82.837,82.801,7.62828418]
[1771565384937,12.202592,82.836,82.801,7.62828418]
[1771565385145,12.20258947,82.835,82.801,7.62828418]
[1771565385344,9.1842134,82.834,82.801,7.62828418]
[1771565385643,10.8694,82.838,82.801,7.62828418]
[1771565385844,12.20423173,82.837,82.801,7.62828418]
[1771565386045,12.20423173,82.836,82.801,7.62828418]
[1771565386338,12.20423173,82.835,82.801,7.62828418]
[1771565386540,12.20423173,82.834,82.801,7.62828418]
[1771565386747,9.18582535,82.833,82.801,7.62828418]
[1771565386943,10.8694,82.838,82.801,7.62828418]
[1771565387243,12.20571542,82.837,82.801,7.62828418]
[1771565387443,12.20571542,82.836,82.801,7.62828418]
[1771565387643,10.8694,82.838,82.801,7.62828418]
[1771565387644,12.20571542,82.835,82.801,7.62828418]
[1771565387844,12.20571542,82.834,82.801,7.62828418]
[1771565388146,12.20571542,82.833,82.801,7.62828418]
[1771565388442,9.18730847,82.832,82.801,7.62828418]
[1771565388646,10.8694,82.838,82.801,7.62828418]
[1771565388946,12.20851651,82.837,82.801,7.62828418]
[1771565389246,12.20851651,82.836,82.801,7.62828418]
[1771565389540,12.20851651,82.835,82.801,7.62828418]
[1771565389845,12.20851651,82.834,82.801,7.62828418]
[1771565390045,12.20851651,82.833,82.801,7.62828418]
[1771565390245,9.19010864,82.832,82.801,7.62828418]
[1771565390446,10.8684,82.846,82.801,7.62828418]
[1771565390645,12.20626136,82.845,82.801,7.62828418]
[1771565390948,12.20626136,82.844,82.801,7.62828418]
[1771565391148,12.20626136,82.843,82.801,7.62828418]
[1771565391350,12.20626136,82.842,82.801,7.62828418]
[1771565391550,12.20626136,82.841,82.801,7.62828418]
[1771565391849,12.20626136,82.84,82.801,7.62828418]
[1771565392042,12.20626136,82.839,82.801,7.62828418]
[1771565392247,12.20626136,82.838,82.801,7.62828418]
[1771565392546,12.20626136,82.837,82.801,7.62828418]
[1771565392746,12.20626136,82.836,82.801,7.62828418]
[1771565392943,12.20626136,82.835,82.801,7.62828418]
[1771565393147,12.20626136,82.834,82.801,7.62828418]
[1771565393347,12.20626136,82.833,82.801,7.62828418]
[1771565393542,3.14900788,82.84,82.801,7.62828418]
[1771565393743,12.20411483,82.839,82.801,7.62828418]
[1771565393947,12.20411483,82.838,82.801,7.62828418]
[1771565394142,12.20411483,82.837,82.801,7.62828418]
[1771565394347,12.20411483,82.836,82.801,7.62828418]
[1771565394550,12.20411483,82.835,82.801,7.62828418]
[1771565394749,12.20411483,82.834,82.801,7.62828418]
[1771565395049,12.20414363,82.833,82.801,7.62828418]
[1771565395245,3.14900788,82.84,82.801,7.62828418]
[1771565395446,12.20300397,82.839,82.801,7.62828418]
[1771565395746,9.1845961,82.838,82.801,7.62828418]
[1771565396050,9.1845961,82.837,82.801,7.62828418]
[1771565396249,9.1845961,82.836,82.801,7.62828418]
[1771565396449,9.1845961,82.835,82.801,7.62828418]
[1771565396651,9.1845961,82.834,82.801,7.62828418]
[1771565396850,9.1845961,82.833,82.801,7.62828418]
[1771565397051,9.1845961,82.832,82.801,7.62828418]
[1771565397349,3.14900788,82.84,82.801,7.62828418]
[1771565397546,9.18946386,82.839,82.801,7.62828418]
[1771565397850,9.18946386,82.838,82.801,7.62828418]
[1771565398051,9.18946386,82.837,82.801,7.62828418]
[1771565398350,9.18946386,82.836,82.801,7.62828418]
[1771565398651,9.18946386,82.835,82.801,7.62828418]
[1771565398851,9.18946386,82.834,82.801,7.62828418]
[1771565399151,9.18946386,82.833,82.801,7.62828418]
[1771565399352,3.14900788,82.84,82.801,7.62828418]
[1771565399552,9.15377702,82.839,82.801,7.62828418]
[1771565399851,9.15377702,82.838,82.801,7.62828418]
[1771565400051,9.15377702,82.837,82.801,7.62828418]
[1771565400252,9.15377702,82.836,82.801,7.62828418]
[1771565400551,9.15377702,82.835,82.801,7.62828418]
[1771565400845,9.15377702,82.834,82.801,7.62828418]
[1771565401050,9.15377702,82.833,82.801,7.62828418]
[1771565401250,3.14900788,82.84,82.801,7.62828418]
[1771565401451,9.16306577,82.839,82.801,7.62828418]
[1771565401644,9.16306577,82.838,82.801,7.62828418]
[1771565401849,9.16306577,82.837,82.801,7.62828418]
[1771565402148,14.996742,82.862,82.751,66.33615097]
[1771565402149,11.24786765,82.856,82.813,7.64692332]
[1771565402349,3.14900788,82.86,82.813,7.64692332]
[1771565403352,10.8667,82.859,82.813,7.64692332]
[1771565405750,10.8688,82.843,82.801,7.66757206]
[1771565405951,3.14900788,82.84,82.801,7.66757206]
[1771565406753,3.14900788,82.85,82.801,7.66757206]
[1771565407159,3.14900788,82.84,82.801,7.66757206]
[1771565407856,11.24786765,82.852,82.801,7.66757206]
[1771565408054,3.14900788,82.83,82.801,7.66757206]
[1771565408753,22.56158639,82.867,82.801,7.66757206]
[1771565408754,33.86690446,82.867,82.834,10.8699]
[1771565408955,16.81157082,82.89,82.85,3.14900788]
[1771565409152,5.50625275,82.89,82.86,3.14900788]
[1771565409459,5.50622627,82.908,82.86,3.14900788]
[1771565410051,5.50622627,82.896,82.85,3.14900788]
[1771565410760,3.14900788,82.89,82.85,3.14900788]
[1771565411355,5.50622627,82.896,82.86,3.14900788]
[1771565416160,5.50622627,82.896,82.844,10.8685]
[1771565416161,5.50622627,82.896,82.85,3.14900788]
[1771565417766,5.50622627,82.896,82.86,3.14900788]
[1771565419562,3.14900788,82.89,82.84,3.14900788]
[1771565419766,5.34032143,82.889,82.84,3.14900788]
[1771565420066,5.34032143,82.889,82.85,3.14900788]
[1771565420765,5.34283084,82.888,82.85,3.14900788]
[1771565421867,5.34275895,82.898,82.86,3.14900788]
[1771565423462,16.19012278,82.909,82.87,3.14900788]
[1771565424368,5.32992278,82.909,82.87,3.14900788]
[1771565426772,5.33064647,82.907,82.86,3.14900788]
[1771565427970,5.33056679,82.899,82.85,3.14900788]
[1771565428469,5.30074627,82.888,82.785,22.60703056]
[1771565428776,5.30074627,82.888,82.84,3.14900788]
[1771565433375,5.31949071,82.886,82.84,3.14900788]
[1771565435870,8.45073955,82.9,82.86,3.14900788]
[1771565436073,5.30173167,82.9,82.86,3.14900788]
[1771565443582,5.38765188,82.911,82.87,3.14900788]
[1771565447485,5.38686819,82.909,82.87,3.14900788]
[1771565449385,5.37674972,82.906,82.87,3.14900788]
[1771565449886,5.37674972,82.906,82.87,3.14379495]
[1771565451384,5.37674972,82.906,82.862,10.8662]
[1771565453086,5.37698788,82.914,82.862,10.8662]
[1771565453285,5.37696527,82.912,82.87,3.14379495]
[1771565453888,5.37696527,82.912,82.88,3.14379495]
[1771565456588,5.37696527,82.912,82.873,10.8647]
[1771565456891,5.372196,82.922,82.882,10.8636]
[1771565457287,5.372196,82.922,82.89,3.14379495]
[1771565458888,5.372196,82.922,82.882,10.8636]
[1771565459490,5.35628735,82.919,82.874,10.8647]
[1771565459892,5.35628735,82.919,82.88,3.14379495]
[1771565462094,5.35628735,82.919,82.828,21.7414]
[1771565462095,5.35628735,82.919,82.89,3.14379495]
[1771565462590,5.35628735,82.919,82.828,190.8414]
[1771565462591,10.8552,82.947,82.855,22.60703056]
[1771565462792,5.43463029,82.946,82.92,3.14379495]
[1771565463093,5.43463029,82.946,82.91,3.14379495]
[1771565463593,5.43463029,82.946,82.9,3.14379495]
[1771565464195,3.14379495,82.94,82.893,10.8622]
[1771565464396,5.45561358,82.939,82.893,10.8622]
[1771565465092,3.14379495,82.93,82.89,3.14379495]
[1771565465294,3.14379495,82.93,82.884,10.8633]
[1771565465295,5.45564382,82.929,82.884,10.8633]
[1771565466587,5.47939996,82.919,82.875,10.8646]
[1771565469093,5.47939996,82.919,82.88,3.14379495]
[1771565470100,5.47939996,82.919,82.882,10.8635]
[1771565470301,19.53274688,82.93,82.882,10.8635]
[1771565470500,5.53145193,82.929,82.89,3.14379495]
[1771565471393,5.53145193,82.929,82.882,10.8635]
[1771565471795,3.14379495,82.93,82.891,10.8624]
[1771565472000,3.14379495,82.94,82.891,10.8624]
[1771565472197,5.53152467,82.939,82.891,10.8624]
[1771565472598,5.5239719,82.936,82.881,10.8637]
[1771565472896,5.5239719,82.936,82.85,62.0]
[1771565472897,3.14379495,82.94,82.88,3.14379495]
[1771565473102,14.9368167,82.98,82.85,62.0]
[1771565473103,5.5239719,82.985,82.905,10.8605]
[1771565473296,5.5239719,82.985,82.94,3.14379495]
[1771565473496,3.14379495,82.98,82.94,3.14379495]
[1771565473705,5.52403864,82.969,82.92,3.14379495]
[1771565473900,5.52403864,82.949,82.883,22.3733813]
[1771565474099,168.7149,83.018,82.841,169.0726]
[1771565474100,5.52403864,82.992,82.92,3.14379495]
[1771565474302,3.14379495,82.97,82.92,3.14379495]
[1771565474504,5.49610469,82.972,82.914,10.8593]
[1771565474701,5.49610469,82.972,82.93,3.14379495]
[1771565475305,5.49615376,82.985,82.94,3.14379495]
[1771565480711,5.25304526,82.979,82.93,3.14379495]
[1771565481612,5.25304526,82.979,82.931,10.8572]
[1771565484014,5.25304526,82.979,82.94,3.14379495]
[1771565485915,5.25304526,82.979,82.944,10.8555]
[1771565486516,5.25304526,82.979,82.94,3.14379495]
[1771565486817,5.25304526,82.979,82.93,3.14379495]
[1771565487209,5.25304526,82.979,82.932,10.857]
[1771565488814,5.25304526,82.979,82.893,472.07682965]
[1771565488815,5.25304526,82.979,82.941,10.8559]
[1771565489015,5.25304526,82.979,82.93,3.14379495]
[1771565491219,5.25304526,82.979,82.942,10.8557]
[1771565494717,8.43788762,82.99,82.942,10.8557]
[1771565494918,5.29409267,82.989,82.942,10.8557]
[1771565497021,5.2941127,83.011,82.97,3.14379495]
[1771565497718,5.2941127,83.011,82.924,14.83649317]
[1771565497719,5.29402446,83.052,82.929,168.8932]
[1771565497927,5.29402446,83.039,82.99,3.14379495]
[1771565498315,36.2,83.099,82.93,168.892]
[1771565498316,5.28594357,83.072,83.01,3.14379495]
[1771565498521,22.35053612,83.12,82.956,21.708]
[1771565498522,5.28594357,83.069,83.02,3.14379495]
[1771565499122,3.14379495,83.05,83.0,3.14379495]
[1771565499423,5.28589425,83.039,82.99,3.14379495]
[1771565500025,5.28589425,83.038,82.99,3.14379495]
[1771565501226,5.28589425,83.038,83.0,3.14379495]
[1771565501622,10.8435,83.037,83.0,3.14379495]
[1771565502430,5.28589425,83.038,83.0,3.14379495]
[1771565504931,5.70935849,83.034,82.99,3.14379495]
[1771565509029,5.70935849,83.034,83.0,3.14379495]
[1771565510131,5.70935849,83.034,83.0,3.13401361]
[1771565515935,5.67395796,83.032,83.0,3.13401361]
[1771565518434,5.51153696,83.03,83.0,3.13401361]
[1771565518635,5.51153696,83.03,82.99,3.13401361]
[1771565520341,5.51164245,83.028,82.961,2.14878279]
[1771565520540,5.51164245,83.028,82.99,3.13401361]
[1771565520841,4.91570377,83.043,83.01,3.13401361]
[1771565522443,4.91570377,83.043,83.02,3.13401361]
[1771565522942,10.8408,83.057,83.03,3.13401361]
[1771565523242,11.17363782,83.12,83.051,2.16254244]
[1771565523441,11.17363782,83.12,83.05,3.13401361]
[1771565523442,9.53018326,83.146,83.036,168.6762]
[1771565523645,9.53018326,83.146,83.13,3.13401361]
[1771565523850,2.09398881,83.173,83.14,3.13401361]
[1771565524147,168.2509,83.247,83.063,168.6216]
[1771565524148,9.53018326,83.198,83.15,3.13401361]
[1771565524446,9.4311932,83.219,83.17,3.13401361]
[1771565524742,9.4311932,83.219,83.086,36.2]
[1771565524743,7.86418639,83.189,83.105,36.2]
[1771565524940,7.86418639,83.189,83.064,168.6204]
[1771565524941,7.86418639,83.189,83.088,14.7503831]
[1771565525138,6.29717959,83.179,83.13,3.13401361]
[1771565525334,6.29717959,83.179,83.12,3.13401361]
[1771565525543,6.29717959,83.179,83.073,168.6009]
[1771565525738,6.29717959,83.179,83.14,3.13401361]
[1771565525939,6.29718496,83.199,83.16,3.13401361]
[1771565526139,6.29718496,83.199,83.11,62.0]
[1771565526442,6.26134382,83.219,83.17,3.13401361]
[1771565526834,6.26134382,83.219,83.11,62.0]
[1771565526835,6.26134382,83.219,83.18,3.13401361]
[1771565527035,6.26134382,83.199,83.15,3.13401361]
[1771565527234,3.13401361,83.21,83.17,3.13401361]
[1771565527641,10.8179,83.233,83.17,3.13401361]
[1771565527838,6.26120765,83.255,83.2,9.27759365]
[1771565528037,6.26120765,83.255,83.18,9.27759365]
[1771565528234,9.27759365,83.3,83.15,9.27759365]
[1771565528235,6.18757811,83.239,83.15,9.27759365]
[1771565528437,6.18757811,83.239,83.153,10.8282]
[1771565528646,6.18757811,83.239,83.15,9.27759365]
[1771565529042,6.18757811,83.239,83.154,10.8281]
[1771565529441,6.1873954,83.219,83.14,9.27759365]
[1771565529945,6.1873954,83.219,83.16,9.27759365]
[1771565530144,9.27759365,83.3,83.16,9.27759365]
[1771565530145,6.00500299,83.245,83.16,9.27759365]
[1771565530341,6.00500299,83.245,83.18,9.27759365]
[1771565531343,6.00452021,83.229,83.14,9.27759365]
[1771565531844,6.00452021,83.229,83.164,10.8268]
[1771565532245,9.27759365,83.21,83.14,9.27759365]
[1771565532544,5.94608288,83.209,83.147,10.8289]
[1771565532744,5.94608288,83.209,83.14,9.27759365]
[1771565532942,5.94608288,83.239,83.16,9.27759365]
[1771565533138,5.74594351,83.239,83.175,10.8253]
[1771565533547,9.27759365,83.27,83.184,10.8241]
[1771565534246,9.27759365,83.25,83.184,10.8241]
[1771565535049,9.27759365,83.25,83.17,9.27759365]
[1771565535241,5.75124045,83.249,83.16,9.27759365]
[1771565535441,5.75124045,83.249,83.161,10.8271]
[1771565535442,5.52163422,83.249,83.161,10.8271]
[1771565536043,10.8158,83.249,83.161,10.8271]
[1771565536240,9.27759365,83.25,83.16,9.27759365]
[1771565536442,9.27759365,83.21,83.14,9.27759365]
[1771565536745,168.2225,83.261,83.081,168.5845]
[1771565536746,168.2225,83.261,83.12,9.27759365]
[1771565537048,9.27759365,83.22,83.14,9.27759365]
[1771565537440,5.64063657,83.219,83.14,9.27759365]
[1771565537843,5.64063657,83.199,83.12,9.27759365]
[1771565538041,5.64063657,83.199,83.14,9.27759365]
[1771565538351,5.75021614,83.247,83.174,10.8255]
[1771565538843,5.75021614,83.247,83.15,9.27759365]
[1771565538844,5.75021614,83.247,83.19,9.27759365]
[1771565539049,5.75021614,83.249,83.17,9.27759365]
[1771565539443,5.74970868,83.239,83.15,9.27759365]
[1771565539951,5.74970868,83.219,83.15,9.27759365]
[1771565540547,5.72280529,83.235,83.178,10.825]
[1771565540751,5.72280529,83.235,83.17,9.27759365]
[1771565541652,5.72280529,83.235,83.189,10.8234]
[1771565542555,5.78944172,83.276,83.205,10.8214]
[1771565542751,5.78944172,83.299,83.21,9.27759365]
[1771565542962,5.78944172,83.299,83.23,9.27759365]
[1771565543250,5.78901871,83.289,83.21,9.27759365]
[1771565543551,5.78901871,83.269,83.19,9.27759365]
[1771565543755,5.78901871,83.269,83.205,10.8214]
[1771565543955,5.78901871,83.269,83.21,9.27759365]
[1771565544155,5.78901871,83.269,83.2,9.27759365]
[1771565544753,5.76314077,83.267,83.19,10.8234]
[1771565545058,5.76314077,83.267,83.2,9.27759365]
[1771565545358,5.76269025,83.289,83.22,9.27759365]
[1771565545748,5.76269025,83.289,83.225,10.8189]
[1771565546351,5.76269025,83.289,83.184,36.2]
[1771565546352,6.04182181,83.287,83.213,10.8204]
[1771565546953,9.27759365,83.28,83.213,10.8204]
[1771565547149,6.04182181,83.279,83.213,10.8204]
[1771565548051,6.04182181,83.279,83.21,9.27759365]
[1771565548656,6.03058195,83.269,83.21,10.8208]
[1771565549656,6.03058195,83.269,83.221,10.8193]
[1771565550264,6.03058195,83.269,83.208,10.821]
[1771565550958,6.03058195,83.269,83.196,10.8226]
[1771565552366,6.03058195,83.269,83.207,10.8212]
[1771565552770,6.03058195,83.269,83.19,9.27759365]
[1771565552771,6.03058195,83.269,83.218,10.8198]
[1771565554067,5.97484174,83.267,83.207,10.8212]
[1771565554367,5.97484174,83.267,83.19,9.27759365]
[1771565555064,5.95704721,83.293,83.227,10.8185]
[1771565555265,5.95704721,83.289,83.21,9.27759365]
[1771565555459,5.95704721,83.289,83.19,9.27759365]
[1771565555768,9.27759365,83.29,83.19,9.27759365]
[1771565555769,5.95689478,83.269,83.19,9.27759365]
[1771565556866,5.94958842,83.267,83.205,10.8214]
[1771565557065,5.94958842,83.267,83.18,9.27759365]
[1771565557270,5.94958842,83.249,83.16,9.27759365]
[1771565557770,5.94920069,83.245,83.18,9.27759365]
[1771565558473,5.93626471,83.269,83.2,9.27759365]
[1771565559365,5.93609685,83.288,83.226,10.8186]
[1771565559761,5.93609685,83.288,83.2,9.27759365]
[1771565560365,5.93722171,83.287,83.226,10.8187]
[1771565561069,5.93722171,83.285,83.226,10.8187]
[1771565561669,5.9370592,83.282,83.226,10.8187]
[1771565562473,5.9370592,83.282,83.235,10.8175]
[1771565562764,5.9370592,83.282,83.22,9.27759365]
[1771565562972,21.94238062,83.347,83.183,36.2]
[1771565562973,5.93913248,83.314,83.24,9.27759365]
[1771565563466,21.94238062,83.347,83.2,9.27759365]
[1771565563467,5.93897727,83.309,83.201,470.93362766]
[1771565563869,5.93897727,83.309,83.22,9.27759365]
[1771565564065,36.2,83.346,83.201,470.93362766]
[1771565564066,5.93897727,83.289,83.201,470.93362766]
[1771565564272,5.94620653,83.269,83.201,470.93362766]
[1771565564773,5.94620653,83.268,83.209,10.8209]
[1771565565272,5.94620653,83.268,83.201,470.93362766]
[1771565565770,9.27759365,83.3,83.17,9.27759365]
[1771565565771,5.94606173,83.249,83.17,9.27759365]
[1771565566773,5.94606173,83.249,83.189,10.8235]
[1771565569168,5.92500436,83.247,83.179,10.8248]
[1771565569673,5.92500436,83.247,83.17,9.27759365]
[1771565569868,5.92484446,83.229,83.173,10.8256]
[1771565571066,5.92414719,83.247,83.17,9.27759365]
[1771565571270,5.92414719,83.247,83.172,10.87372967]
[1771565571573,5.92414719,83.247,83.173,10.87372967]
[1771565571773,5.92414719,83.247,83.203,10.8217]
[1771565572166,5.92414719,83.247,83.18,9.28283747]
[1771565572776,5.92414719,83.247,83.202,10.8217]
[1771565574073,5.92414719,83.247,83.192,10.8231]
[1771565575565,5.85677356,83.244,83.182,10.8244]
[1771565575765,5.85677356,83.244,83.171,10.87372967]
[1771565575969,5.85677356,83.244,83.176,10.87372967]
[1771565576375,9.28283747,83.25,83.18,10.87372967]
[1771565576868,9.28283747,83.25,83.185,10.87372967]
[1771565577275,5.85086308,83.249,83.177,10.87372967]
[1771565577670,5.85086308,83.249,83.171,10.87372967]
[1771565577970,5.85086308,83.247,83.168,10.87372967]
[1771565578773,5.85762898,83.24,83.168,10.87372967]
[1771565578974,5.85762898,83.229,83.164,10.87372967]
[1771565579476,5.85762898,83.229,83.15,9.28283747]
[1771565579869,5.85742828,83.225,83.163,10.8268]
[1771565580270,36.2,83.287,83.17,9.28283747]
[1771565580473,14.70778425,83.302,83.192,4.97800386]
[1771565580775,9.28283747,83.28,83.192,4.97800386]
[1771565581879,10.8132,83.269,83.212,10.8205]
[1771565582268,4.9001732,83.268,83.212,10.8205]
[1771565583372,4.9001732,83.268,83.215,10.8201]
[1771565583573,4.9001732,83.268,83.216,5.18280594]
[1771565583977,4.9001732,83.268,83.108,50.73827486]
[1771565583978,5.17528244,83.293,83.23,5.19626868]
[1771565585682,5.17528244,83.293,83.246,5.19858685]
[1771565586281,5.17528244,83.293,83.231,5.20101771]
[1771565587784,5.17528244,83.293,83.234,5.2305351]
[1771565588686,5.17528244,83.293,83.235,10.8175]
[1771565588985,16.12092242,83.291,83.236,5.24453589]
[1771565589184,5.31062242,83.29,83.236,5.24453589]
[1771565590083,5.31062242,83.303,83.238,5.25763758]
[1771565590381,5.31062242,83.309,83.238,5.25763758]
[1771565591385,5.31062242,83.305,83.253,10.8151]
[1771565592587,5.31062242,83.305,83.259,10.8144]
[1771565594290,5.31062242,83.296,83.233,5.21474718]
[1771565595189,5.31062242,83.296,83.23,9.28283747]
[1771565595190,5.31062242,83.296,83.242,5.22701725]
[1771565595894,5.31062242,83.293,83.242,5.22701725]
[1771565596089,5.31062242,83.293,83.231,5.23870001]
[1771565596994,5.31062242,83.293,83.244,5.32981901]
[1771565598296,5.31062242,83.311,83.247,5.32981901]
[1771565598699,10.808,83.309,83.252,5.32981901]
[1771565599198,5.31062242,83.311,83.26,5.32981901]
[1771565601291,5.31062242,83.309,83.246,5.32981901]
[1771565602400,5.31062242,83.309,83.256,10.8148]
[1771565603097,5.31062242,83.306,83.256,10.8148]
[1771565603600,5.31062242,83.306,83.257,5.32981901]
[1771565605000,5.31062242,83.306,83.247,16.14571901]
[1771565605201,5.31062242,83.299,83.247,5.32981901]
[1771565606703,5.31062242,83.299,83.255,10.8149]
[1771565608505,5.31062242,83.297,83.221,5.32981901]
[1771565609707,5.31062242,83.294,83.246,10.8161]
[1771565611509,5.31062242,83.294,83.246,16.14591901]
[1771565612211,5.31062242,83.287,83.237,5.32981901]
[1771565612912,5.31062242,83.287,83.239,5.32981901]
[1771565613211,16.12012242,83.297,83.239,5.32981901]
[1771565613412,5.31062242,83.296,83.239,5.32981901]
[1771565613708,5.31062242,83.296,83.242,10.8165]
[1771565614212,5.31062242,83.292,83.242,10.8165]
[1771565615315,5.31062242,83.289,83.221,5.32981901]
[1771565616711,5.31062242,83.277,83.229,10.8183]
[1771565617118,5.31062242,83.277,83.183,21.5604412]
[1771565617119,5.14715049,83.29,83.245,5.36921572]
[1771565617411,5.14715049,83.306,83.245,5.36921572]
[1771565617912,5.14715049,83.304,83.245,5.36921572]
[1771565618916,5.14715049,83.293,83.245,5.36921572]
[1771565620313,5.14715049,83.293,83.223,5.36921572]
[1771565620510,11.19476505,83.34,83.236,5.36921572]
[1771565620511,5.14715049,83.29,83.236,5.36921572]
[1771565621017,15.95775049,83.289,83.242,10.8165]
[1771565621212,5.14715049,83.288,83.242,10.8165]
[1771565622822,15.95845049,83.284,83.236,5.36921572]
[1771565623825,5.14715049,83.284,83.238,5.36921572]
[1771565624424,5.14715049,83.284,83.239,10.817]
[1771565625127,5.14715049,83.281,83.238,5.36921572]
[1771565625524,5.14715049,83.299,83.238,5.36921572]
[1771565625927,5.14715049,83.312,83.259,5.36921572]
[1771565626523,5.14715049,83.31,83.262,10.814]
[1771565626925,5.14715049,83.31,83.259,5.36921572]
[1771565627526,11.18386926,83.346,83.271,5.36921572]
[1771565627731,11.18386926,83.346,83.27,9.28283747]
[1771565627732,14.70778425,83.405,83.311,5.36921572]
[1771565627927,10.7967,83.396,83.325,5.36921572]
[1771565628523,9.28283747,83.4,83.304,36.2]
[1771565628524,9.28283747,83.4,83.331,5.36921572]
[1771565629129,9.28283747,83.4,83.33,9.28283747]
[1771565629130,10.7965,83.398,83.335,5.36921572]
[1771565630129,5.14715049,83.399,83.339,5.36921572]
[1771565630428,5.14715049,83.415,83.351,5.36921572]
[1771565630828,5.14715049,83.415,83.357,5.36921572]
[1771565631025,9.28283747,83.45,83.35,9.28283747]
[1771565631026,5.14715049,83.449,83.391,5.36921572]
[1771565631434,5.14715049,83.447,83.368,5.36921572]
[1771565632129,15.93735049,83.447,83.37,9.28283747]
[1771565632436,5.14715049,83.447,83.371,5.36921572]
[1771565632826,5.14715049,83.447,83.37,9.28283747]
[1771565632827,5.14715049,83.447,83.373,5.36921572]
[1771565633635,5.14715049,83.447,83.377,5.36921572]
[1771565634543,10.7919,83.433,83.377,5.36921572]
[1771565635735,5.14715049,83.429,83.36,5.36921572]
[1771565636637,5.14715049,83.425,83.36,5.36921572]
[1771565637933,10.7936,83.42,83.36,5.36921572]
[1771565638632,5.14715049,83.417,83.36,5.36921572]
[1771565638840,5.14715049,83.409,83.341,5.36921572]
[1771565639840,5.14715049,83.407,83.341,5.36921572]
[1771565640832,5.14715049,83.403,83.341,5.36921572]
[1771565641041,9.24159399,83.41,83.342,5.36921572]
[1771565641335,5.14715049,83.449,83.351,5.36921572]
[1771565641536,5.14715049,83.449,83.38,5.36921572]
[1771565642134,5.14715049,83.449,83.382,5.36921572]
[1771565642840,5.50946519,83.459,83.382,5.36921572]
[1771565643637,10.7895,83.452,83.384,10.7982]
[1771565643847,5.50946519,83.451,83.385,5.50318008]
[1771565644546,5.50946519,83.437,83.369,5.50318008]
[1771565644743,5.50946519,83.437,83.371,5.50318008]
[1771565645641,5.50946519,83.437,83.373,10.7996]
[1771565645838,5.50946519,83.437,83.374,5.50318008]
[1771565646244,5.50946519,83.435,83.374,5.50318008]
[1771565647445,5.29370122,83.451,83.387,5.53496523]
[1771565648342,5.29370122,83.451,83.389,5.53496523]
[1771565649052,5.29370122,83.446,83.389,5.53496523]
[1771565650461,5.29370122,83.446,83.391,5.53496523]
[1771565651163,5.29370122,83.444,83.391,5.53496523]
[1771565651765,5.29370122,83.444,83.393,5.53496523]
[1771565651958,444.0,83.504,83.35,9.24159399]
[1771565651959,5.29370122,83.5,83.411,5.53496523]
[1771565652260,5.29370122,83.5,83.4,9.24159399]
[1771565652261,5.29370122,83.498,83.433,5.53496523]
[1771565653257,5.29370122,83.479,83.416,10.7941]
[1771565653559,5.29370122,83.479,83.417,5.53496523]
[1771565653759,5.29370122,83.479,83.427,10.7927]
[1771565653956,5.29370122,83.479,83.398,5.53496523]
[1771565654160,5.29370122,83.479,83.4,14.77655922]
[1771565654357,5.29370122,83.479,83.401,5.53496523]
[1771565654769,5.29370122,83.477,83.416,10.7941]
[1771565654957,5.29370122,83.477,83.421,5.53496523]
[1771565656766,5.29370122,83.477,83.432,10.792]
[1771565658261,5.29370122,83.477,83.417,10.7939]
[1771565658460,5.29370122,83.477,83.408,5.53496523]